bitfinex/quotes_BTCUSD_20240915
["timestamp","ask_amount","ask_price","bid_price","bid_amount"]
[1726380179430,0.70274163,60313.0,60312.0,0.01378825]
[1726380182785,0.70274163,60313.0,60312.0,0.08473462]
[1726380191030,0.37113863,60313.0,60312.0,0.08473462]
[1726380192845,0.29023863,60313.0,60312.0,0.08473462]
[1726380195662,0.70254163,60313.0,60312.0,0.08473462]
[1726380195888,0.70254163,60313.0,60312.0,0.04641861]
[1726380196118,0.37093863,60313.0,60312.0,0.08726606]
[1726380197533,0.70254163,60313.0,60312.0,0.08726606]
[1726380201598,0.70254163,60313.0,60312.0,0.01378825]
[1726380202632,0.70254163,60313.0,60312.0,0.04510142]
[1726380202839,0.70254163,60313.0,60312.0,0.01378825]
[1726380203054,0.70254163,60313.0,60312.0,0.04510142]
[1726380203284,0.70254163,60313.0,60312.0,0.05591309]
[1726380204159,0.7523628,60313.0,60312.0,0.05591309]
[1726380206485,0.75236696,60313.0,60312.0,0.05591309]
[1726380206918,0.75236696,60313.0,60312.0,0.01378825]
[1726380209113,0.75236696,60313.0,60312.0,0.08722626]
[1726380209259,0.75236696,60313.0,60312.0,0.01378825]
[1726380209487,0.75236696,60313.0,60312.0,0.04510142]
[1726380209693,0.75236696,60313.0,60312.0,0.01378825]
[1726380210103,0.75236696,60313.0,60312.0,0.04510142]
[1726380210310,0.75236696,60313.0,60312.0,0.08722626]
[1726380213999,0.75236696,60313.0,60312.0,0.01378825]
[1726380214247,0.75236696,60313.0,60312.0,0.04510142]
[1726380214479,0.75236696,60313.0,60312.0,0.01378825]
[1726380218739,0.75236696,60313.0,60312.0,0.001646]
[1726380219142,1.11310319,60313.0,60312.0,0.001646]
[1726380219358,1.06327786,60313.0,60312.0,0.001646]
[1726380219576,1.13801266,60313.0,60312.0,0.001646]
[1726380220683,1.13801246,60313.0,60312.0,0.001646]
[1726380225380,1.13799329,60313.0,60312.0,0.001646]
[1726380225580,0.80639029,60313.0,60312.0,0.001646]
[1726380227525,0.73167486,60313.0,60312.0,0.001646]
[1726380229180,0.70566023,60313.0,60312.0,0.001646]
[1726380232290,0.37405723,60313.0,60312.0,0.001646]
[1726380232504,0.264224,60313.0,60312.0,0.001646]
[1726380232717,0.29335723,60313.0,60312.0,0.03303767]
[1726380232850,0.29335723,60313.0,60312.0,0.001646]
[1726380233063,0.29335723,60313.0,60312.0,0.03303767]
[1726380233269,0.29335723,60313.0,60312.0,0.001646]
[1726380233468,0.264224,60313.0,60312.0,0.03303767]
[1726380233726,0.264224,60313.0,60312.0,0.001646]
[1726380234014,0.264224,60313.0,60312.0,0.03303767]
[1726380234269,0.29335723,60313.0,60312.0,0.001646]
[1726380234504,0.29335723,60313.0,60312.0,0.03303767]
[1726380234734,0.171624,60313.0,60312.0,0.001646]
[1726380234957,0.005823,60313.0,60312.0,0.00473545]
[1726380235167,0.005823,60313.0,60312.0,0.0305781]
[1726380235408,0.005823,60313.0,60312.0,0.01156257]
[1726380236595,0.171624,60313.0,60312.0,0.01320857]
[1726380237329,0.005823,60313.0,60312.0,0.01320857]
[1726380237781,0.20075723,60313.0,60312.0,0.01320857]
[1726380237972,0.29185723,60313.0,60312.0,0.01320857]
[1726380241447,0.12605623,60313.0,60312.0,0.01320857]
[1726380241834,0.096923,60313.0,60312.0,0.01320857]
[1726380243180,0.12605623,60313.0,60312.0,0.01320857]
[1726380243612,0.29185723,60313.0,60312.0,0.01320857]
[1726380255244,0.34166389,60313.0,60312.0,0.01320857]
[1726380256377,0.29185723,60313.0,60312.0,0.01320857]
[1726380269611,0.34166494,60313.0,60312.0,0.01320857]
[1726380270989,0.34167182,60313.0,60312.0,0.01320857]
[1726380274199,0.34167182,60313.0,60312.0,0.0553452]
[1726380274408,0.34167182,60313.0,60312.0,0.01320857]
[1726380274621,0.34167182,60313.0,60312.0,0.0553452]
[1726380274828,0.34167182,60313.0,60312.0,0.01320857]
[1726380275040,0.34167182,60313.0,60312.0,0.0553452]
[1726380275298,0.34167182,60313.0,60312.0,0.01320857]
[1726380275771,0.34167182,60313.0,60312.0,0.0553452]
[1726380275956,0.34167182,60313.0,60312.0,0.01320857]
[1726380276198,0.34167182,60313.0,60312.0,0.0553452]
[1726380276410,0.34167182,60313.0,60312.0,0.01320857]
[1726380276620,0.34167182,60313.0,60312.0,0.0553452]
[1726380276833,0.34167182,60313.0,60312.0,0.01320857]
[1726380277053,0.34167182,60313.0,60312.0,0.0553452]
[1726380277278,0.34167182,60313.0,60312.0,0.01320857]
[1726380277498,0.34167182,60313.0,60312.0,0.0553452]
[1726380277691,0.34167182,60313.0,60312.0,0.01320857]
[1726380278143,0.75137482,60313.0,60312.0,0.0553452]
[1726380278394,0.75137482,60313.0,60312.0,0.01320857]
[1726380278626,0.75137482,60313.0,60312.0,0.0101241]
[1726380279083,0.75137482,60313.0,60312.0,0.01321]
[1726380280569,0.41977182,60313.0,60312.0,0.01321]
[1726380282562,0.44578588,60313.0,60312.0,0.01321]
[1726380286837,0.41977182,60313.0,60312.0,0.01321]
[1726380289338,0.05563759,60313.0,60312.0,0.202014]
[1726380289557,0.005823,60313.0,60312.0,0.03621]
[1726380289790,0.03183691,60313.0,60312.0,0.03621]
[1726380299355,0.005823,60313.0,60312.0,0.03621]
[1726380302535,0.03183673,60313.0,60312.0,0.03621]
[1726380305310,0.29403773,60313.0,60312.0,0.03621]
[1726380305527,0.12823673,60313.0,60312.0,0.03621]
[1726380306645,0.102223,60313.0,60312.0,0.03621]
[1726380309184,0.102223,60313.0,60312.0,0.01321]
[1726380311065,0.12823683,60313.0,60312.0,0.01321]
[1726380312526,0.29403783,60313.0,60312.0,0.01321]
[1726380317265,0.268024,60313.0,60312.0,0.01321]
[1726380319697,0.599627,60313.0,60312.0,0.01321]
[1726380321120,0.64943214,60313.0,60312.0,0.01321]
[1726380321366,0.22142914,60313.0,60312.0,0.01321]
[1726380321602,0.19763819,60313.0,60312.0,0.01321]
[1726380321854,0.28893819,60313.0,60312.0,0.0101241]
[1726380322068,0.28893819,60313.0,60312.0,0.01321026]
[1726380322980,0.28893819,60313.0,60312.0,0.0101241]
[1726380324952,0.262924,60313.0,60312.0,0.0101241]
[1726380325191,0.171624,60313.0,60312.0,0.0101241]
[1726380325668,0.171624,60313.0,60312.0,0.01321026]
[1726380331441,0.171624,60313.0,60312.0,0.0101241]
[1726380336518,0.262924,60313.0,60312.0,0.0101241]
[1726380338716,0.594527,60313.0,60312.0,0.001646]
[1726380340390,0.62054111,60313.0,60312.0,0.001646]
[1726380344831,0.67035502,60313.0,60312.0,0.001646]
[1726380345053,0.62054111,60313.0,60312.0,0.001646]
[1726380345480,0.67035502,60313.0,60312.0,0.001646]
[1726380347281,0.67035502,60313.0,60312.0,0.020857]
[1726380347515,0.67035502,60313.0,60312.0,0.05980282]
[1726380349724,0.64434091,60313.0,60312.0,0.05980282]
[1726380352485,0.594527,60313.0,60312.0,0.05980282]
[1726380352710,0.64435747,60313.0,60312.0,0.05980282]
[1726380353607,0.64435825,60313.0,60312.0,0.05980282]
[1726380353980,0.67037236,60313.0,60312.0,0.05980282]
[1726380354597,0.62054111,60313.0,60312.0,0.05980282]
[1726380355020,0.67037308,60313.0,60312.0,0.05980282]
[1726380355668,0.62054111,60313.0,60312.0,0.05980282]
[1726380357671,0.594527,60313.0,60312.0,0.05980282]
[1726380362079,0.62054105,60313.0,60312.0,0.05980282]
[1726380366479,0.594527,60313.0,60312.0,0.05980282]
[1726380366944,0.594527,60313.0,60312.0,0.04059182]
[1726380367176,0.594527,60313.0,60312.0,0.001646]
[1726380367432,0.64436456,60313.0,60312.0,0.04059182]
[1726380370973,0.64436013,60313.0,60312.0,0.04059182]
[1726380371198,0.67037429,60313.0,60312.0,0.0636973]
[1726380374355,0.33877129,60313.0,60312.0,0.0636973]
[1726380376551,0.31275713,60313.0,60312.0,0.0636973]
[1726380379105,0.31275713,60313.0,60312.0,0.04059182]
[1726380379593,0.097123,60313.0,60312.0,0.04059182]
[1726380379822,0.005823,60313.0,60312.0,0.04059182]
[1726380383320,0.03183639,60313.0,60312.0,0.04059182]
[1726380384007,0.03183639,60313.0,60312.0,0.20639582]
[1726380384256,0.03183639,60313.0,60312.0,0.56100382]
[1726380384489,0.03183639,60313.0,60312.0,0.58300382]
[1726380385144,0.03183639,60313.0,60312.0,0.56100382]
[1726380389193,0.005823,60313.0,60312.0,0.56100382]
[1726380389420,0.005823,60313.0,60312.0,0.89261182]
[1726380393654,0.03183639,60313.0,60312.0,0.89261182]
[1726380394648,0.03183639,60313.0,60312.0,1.22421982]
[1726380394852,0.03183639,60313.0,60312.0,1.24621982]
[1726380395511,0.03083639,60313.0,60312.0,1.24621982]
[1726380395717,0.02583639,60313.0,60312.0,1.24621982]
[1726380395928,0.02583639,60313.0,60312.0,1.24721982]
[1726380396274,0.02883639,60313.0,60312.0,1.24721982]
[1726380396697,0.02583639,60313.0,60312.0,1.24721982]
[1726380396910,0.02583639,60313.0,60312.0,1.25021982]
[1726380397324,0.02583639,60313.0,60312.0,1.24921982]
[1726380398158,0.02683639,60313.0,60312.0,1.23221982]
[1726380400144,0.001,60313.0,60312.0,1.23221982]
[1726380400993,0.001823,60313.0,60312.0,1.23221982]
[1726380412826,0.001823,60313.0,60312.0,0.90061182]
[1726380415942,0.176823,60313.0,60312.0,0.07159182]
[1726380416179,0.176823,60313.0,60312.0,0.1120787]
[1726380417520,0.176823,60313.0,60312.0,0.2778827]
[1726380423435,0.176823,60313.0,60312.0,0.37301322]
[1726380427602,0.176823,60313.0,60312.0,0.70462122]
[1726380427797,0.097023,60313.0,60312.0,1.03622922]
[1726380428523,0.001823,60313.0,60312.0,1.03622922]
[1726380432648,0.097523,60313.0,60312.0,1.03622922]
[1726380476911,0.097523,60313.0,60312.0,0.37301322]
[1726380477142,0.097523,60313.0,60312.0,0.70462122]
[1726380483350,0.174723,60313.0,60312.0,0.37301322]
[1726380487247,0.174723,60313.0,60312.0,0.20720922]
[1726380487869,0.174723,60313.0,60312.0,0.37301322]
[1726380488871,0.174723,60313.0,60312.0,0.20720922]
[1726380493897,0.178623,60313.0,60312.0,0.37301322]
[1726380495193,0.178623,60313.0,60312.0,0.20720922]
[1726380517084,0.178623,60313.0,60312.0,0.37301322]
[1726380524369,0.178623,60313.0,60312.0,0.70462122]
[1726380524370,0.101423,60313.0,60312.0,0.70462122]
[1726380536770,0.101423,60313.0,60312.0,0.37301322]
[1726380537286,0.182723,60313.0,60312.0,0.37301322]
[1726380547642,0.182723,60313.0,60312.0,0.3340674]
[1726380547863,0.182723,60313.0,60312.0,0.37300027]
[1726380559434,0.182723,60313.0,60312.0,0.70460827]
[1726380559653,0.101423,60313.0,60312.0,0.70460827]
[1726380560320,0.001823,60313.0,60312.0,1.03621627]
[1726380565981,0.092623,60313.0,60312.0,0.94108575]
[1726380566207,0.092623,60313.0,60312.0,1.03621627]
[1726380566426,0.092623,60313.0,60312.0,0.60947775]
[1726380566652,0.092623,60313.0,60312.0,0.70460827]
[1726380575114,0.001823,60313.0,60312.0,1.03621627]
[1726380575365,0.001823,60313.0,60312.0,0.70460827]
[1726380577027,0.001823,60313.0,60312.0,1.03621627]
[1726380577264,0.001823,60313.0,60312.0,0.70460827]
[1726380578766,0.092623,60313.0,60312.0,0.70460827]
[1726380579708,0.092623,60313.0,60312.0,1.03621627]
[1726380580217,0.092623,60313.0,60312.0,0.70460827]
[1726380580466,0.092623,60313.0,60312.0,1.03621627]
[1726380582680,0.001823,60313.0,60312.0,1.03621627]
[1726380583643,0.100123,60313.0,60312.0,1.03621627]
[1726380586155,0.100123,60313.0,60312.0,0.70460827]
[1726380586597,0.100123,60313.0,60312.0,1.03621627]
[1726380587167,0.100123,60313.0,60312.0,0.70460827]
[1726380587592,0.100123,60313.0,60312.0,1.03621627]
[1726380588455,0.100123,60313.0,60312.0,1.03749757]
[1726380591237,0.177623,60313.0,60312.0,0.11334705]
[1726380591470,1.03576323,60313.0,60312.0,0.04986017]
[1726380591713,1.41715397,60313.0,60312.0,0.009646]
[1726380591956,1.36736623,60313.0,60312.0,0.009646]
[1726380592183,1.46694171,60313.0,60312.0,0.009646]
[1726380592391,1.46696572,60313.0,60312.0,0.009646]
[1726380592602,1.46696572,60313.0,60312.0,0.006646]
[1726380592603,1.44203628,60313.0,60312.0,0.006646]
[1726380592829,1.44103603,60313.0,60312.0,0.005646]
[1726380593280,0.85820823,60308.0,60307.0,0.001646]
[1726380593501,1.41539203,60308.0,60307.0,0.001646]
[1726380593717,1.41539043,60308.0,60307.0,0.001646]
[1726380594144,1.36563823,60308.0,60307.0,0.001646]
[1726380596417,1.37063823,60308.0,60307.0,0.001646]
[1726380596654,1.37663823,60308.0,60307.0,0.001646]
[1726380606479,1.04500823,60308.0,60307.0,0.001646]
[1726380613908,0.71337823,60308.0,60307.0,0.001646]
[1726380617479,1.04500823,60308.0,60307.0,0.001646]
[1726380634500,1.37663823,60308.0,60307.0,0.001646]
[1726380635616,1.42635851,60308.0,60307.0,0.001646]
[1726380636607,1.45121865,60308.0,60307.0,0.001646]
[1726380636845,1.37663823,60308.0,60307.0,0.001646]
[1726380638683,1.50120523,60308.0,60307.0,0.001646]
[1726380642500,1.50121639,60308.0,60307.0,0.001646]
[1726380642953,1.37663823,60308.0,60307.0,0.001646]
[1726380643825,1.50121198,60308.0,60307.0,0.001646]
[1726380644960,1.37663823,60308.0,60307.0,0.001646]
[1726380650662,1.501135,60308.0,60307.0,0.001646]
[1726380652165,1.50107933,60308.0,60307.0,0.001646]
[1726380656690,1.50106873,60308.0,60307.0,0.001646]
[1726380664979,1.50105139,60308.0,60307.0,0.001646]
[1726380667034,1.47617565,60308.0,60307.0,0.001646]
[1726380667545,1.37663823,60308.0,60307.0,0.001646]
[1726380672198,1.04500823,60308.0,60307.0,0.001646]
[1726380672878,1.37663823,60308.0,60307.0,0.001646]
[1726380673102,1.04500823,60308.0,60307.0,0.001646]
[1726380685494,1.37663823,60308.0,60307.0,0.001646]
[1726380685730,1.14454799,60308.0,60307.0,0.001646]
[1726380685949,1.16943483,60308.0,60307.0,0.001646]
[1726380686171,1.04500823,60308.0,60307.0,0.001646]
[1726380686611,1.16943483,60308.0,60307.0,0.001646]
[1726380687344,1.14453967,60308.0,60307.0,0.001646]
[1726380687588,1.64590695,60308.0,60307.0,0.001646]
[1726380687829,1.47663823,60308.0,60307.0,0.001646]
[1726380688020,1.80826823,60308.0,60307.0,0.001646]
[1726380688450,1.97624414,60308.0,60307.0,0.001646]
[1726380688652,1.80826823,60308.0,60307.0,0.001646]
[1726380688968,1.97550844,60308.0,60307.0,0.001646]
[1726380689227,1.97050844,60308.0,60307.0,0.002646]
[1726380689499,1.99550844,60308.0,60307.0,0.002646]
[1726380689710,1.97050844,60308.0,60307.0,0.001646]
[1726380690136,1.98450844,60308.0,60307.0,0.002646]
[1726380692542,1.99850844,60308.0,60307.0,0.002646]
[1726380693619,2.33013844,60308.0,60307.0,0.002646]
[1726380694150,1.99850844,60308.0,60307.0,0.002646]
[1726380695082,2.33013844,60308.0,60307.0,0.002646]
[1726380699705,2.47902308,60308.0,60307.0,0.002646]
[1726380700651,2.50504622,60308.0,60307.0,0.002646]
[1726380702557,2.35616158,60308.0,60307.0,0.002646]
[1726380702812,2.50500632,60308.0,60307.0,0.002646]
[1726380703023,2.47898318,60308.0,60307.0,0.002646]
[1726380703247,2.33013844,60308.0,60307.0,0.002646]
[1726380704631,2.15889823,60308.0,60307.0,0.002646]
[1726380706086,2.1849218,60308.0,60307.0,0.002646]
[1726380716365,2.2149218,60308.0,60307.0,0.002646]
[1726380716576,2.18889823,60308.0,60307.0,0.002646]
[1726380717989,2.18889823,60308.0,60307.0,1e-06]
[1726380718224,2.36013844,60308.0,60307.0,1e-06]
[1726380719610,2.50894012,60308.0,60307.0,1e-06]
[1726380720080,2.53496416,60308.0,60307.0,1e-06]
[1726380720310,3.67653616,60308.0,60307.0,1e-06]
[1726380720528,3.52773448,60308.0,60307.0,1e-06]
[1726380720984,3.52773448,60308.0,60307.0,0.001647]
[1726380721484,3.58773448,60308.0,60307.0,0.001647]
[1726380722853,3.56171044,60308.0,60307.0,0.001647]
[1726380723086,3.56171044,60308.0,60307.0,1e-06]
[1726380723580,1.85525223,60303.0,60302.0,0.0013763]
[1726380723811,2.25568275,60303.0,60302.0,3e-07]
[1726380724037,2.40454669,60303.0,60302.0,3e-07]
[1726380724253,2.33303041,60303.0,60302.0,3e-07]
[1726380724471,2.50427062,60303.0,60302.0,3e-07]
[1726380724703,2.51327062,60303.0,60302.0,3e-07]
[1726380725352,2.52227062,60303.0,60302.0,3e-07]
[1726380726235,2.54829695,60303.0,60302.0,3e-07]
[1726380730496,2.71572917,60303.0,60302.0,3e-07]
[1726380731587,2.54829695,60303.0,60302.0,3e-07]
[1726380731796,2.48829695,60303.0,60302.0,3e-07]
[1726380732003,2.54829695,60303.0,60302.0,3e-07]
[1726380732434,2.71591816,60303.0,60302.0,3e-07]
[1726380732650,2.54829695,60303.0,60302.0,3e-07]
[1726380737174,2.48829695,60303.0,60302.0,3e-07]
[1726380737394,2.54829695,60303.0,60302.0,3e-07]
[1726380746009,2.51829695,60303.0,60302.0,3e-07]
[1726380747082,2.48829695,60303.0,60302.0,3e-07]
[1726380749323,2.31705674,60303.0,60302.0,3e-07]
[1726380758001,2.31787974,60303.0,60302.0,3e-07]
[1726380760203,2.70953774,60303.0,60302.0,3e-07]
[1726380762624,2.70753774,60303.0,60302.0,3e-07]
[1726380762822,2.70953774,60303.0,60302.0,3e-07]
[1726380763234,2.88077795,60303.0,60302.0,3e-07]
[1726380765028,2.70953774,60303.0,60302.0,3e-07]
[1726380766845,2.68351141,60303.0,60302.0,3e-07]
[1726380767986,2.68151141,60303.0,60302.0,3e-07]
[1726380770068,2.70753715,60303.0,60302.0,3e-07]
[1726380772008,2.70653715,60303.0,60302.0,3e-07]
[1726380773329,2.68051141,60303.0,60302.0,3e-07]
[1726380774264,2.67851141,60303.0,60302.0,3e-07]
[1726380774940,2.68051141,60303.0,60302.0,3e-07]
[1726380775175,2.67851141,60303.0,60302.0,3e-07]
[1726380776642,2.70453727,60303.0,60302.0,3e-07]
[1726380777890,2.67851141,60303.0,60302.0,3e-07]
[1726380779784,2.68051141,60303.0,60302.0,3e-07]
[1726380779986,2.67851141,60303.0,60302.0,3e-07]
[1726380780845,2.70453722,60303.0,60302.0,3e-07]
[1726380781516,2.37287922,60303.0,60302.0,3e-07]
[1726380782196,1.7407907,60303.0,60302.0,3e-07]
[1726380782410,1.7107907,60303.0,60302.0,3e-07]
[1726380783132,1.68476489,60303.0,60302.0,3e-07]
[1726380783374,1.8526904,60303.0,60302.0,3e-07]
[1726380783806,1.85269301,60303.0,60302.0,3e-07]
[1726380784034,1.68476489,60303.0,60302.0,3e-07]
[1726380784548,1.85269406,60303.0,60302.0,3e-07]
[1726380784762,1.65476489,60303.0,60302.0,0.0276003]
[1726380786348,1.68078818,60303.0,60302.0,0.0276003]
[1726380787425,1.65476489,60303.0,60302.0,0.0276003]
[1726380789079,1.65476489,60303.0,60302.0,3e-07]
[1726380790441,1.68078864,60303.0,60302.0,3e-07]
[1726380793191,1.65476489,60303.0,60302.0,3e-07]
[1726380793428,1.80390818,60303.0,60302.0,3e-07]
[1726380796561,1.82993207,60303.0,60302.0,3e-07]
[1726380796775,1.82991242,60303.0,60302.0,3e-07]
[1726380797626,1.80388853,60303.0,60302.0,3e-07]
[1726380798740,1.65476489,60303.0,60302.0,3e-07]
[1726380798957,1.74989541,60303.0,60302.0,3e-07]
[1726380800782,1.775919,60303.0,60302.0,3e-07]
[1726380803291,1.74989541,60303.0,60302.0,3e-07]
[1726380806550,1.77591924,60303.0,60302.0,3e-07]
[1726380807658,1.74989541,60303.0,60302.0,3e-07]
[1726380810590,1.77591928,60303.0,60302.0,3e-07]
[1726380813280,1.8989822,60303.0,60302.0,3e-07]
[1726380813523,1.74989541,60303.0,60302.0,3e-07]
[1726380816420,1.77591942,60303.0,60302.0,3e-07]
[1726380817486,1.74989541,60303.0,60302.0,3e-07]
[1726380817886,1.8989822,60303.0,60302.0,3e-07]
[1726380818325,1.8990362,60303.0,60302.0,3e-07]
[1726380820693,1.92506029,60303.0,60302.0,3e-07]
[1726380821603,2.02276029,60303.0,60302.0,3e-07]
[1726380822303,1.8736195,60303.0,60302.0,3e-07]
[1726380823291,1.84759541,60303.0,60302.0,3e-07]
[1726380826429,1.87361963,60303.0,60302.0,3e-07]
[1726380827617,1.84759541,60303.0,60302.0,3e-07]
[1726380830734,1.87361978,60303.0,60302.0,3e-07]
[1726380833439,1.84759541,60303.0,60302.0,3e-07]
[1726380836544,1.87362029,60303.0,60302.0,3e-07]
[1726380837646,1.84759541,60303.0,60302.0,3e-07]
[1726380840703,1.87362001,60303.0,60302.0,3e-07]
[1726380843201,1.84759541,60303.0,60302.0,3e-07]
[1726380844374,1.93159541,60303.0,60302.0,3e-07]
[1726380845539,2.26325341,60303.0,60302.0,3e-07]
[1726380846411,2.28927874,60303.0,60302.0,3e-07]
[1726380847540,2.26325341,60303.0,60302.0,3e-07]
[1726380847976,2.43116832,60303.0,60302.0,3e-07]
[1726380848424,2.26325341,60303.0,60302.0,3e-07]
[1726380849849,2.43116832,60303.0,60302.0,3e-07]
[1726380850283,2.26325341,60303.0,60302.0,3e-07]
[1726380850710,2.28928084,60303.0,60302.0,3e-07]
[1726380852496,2.62093884,60303.0,60302.0,3e-07]
[1726380852716,1.85070323,60288.0,60287.0,0.4708]
[1726380853011,0.497626,60286.0,60281.0,0.27803729]
[1726380853277,1.61723674,60286.0,60281.0,0.029246]
[1726380853501,1.492879,60286.0,60281.0,0.029246]
[1726380854386,1.61842466,60286.0,60281.0,0.029246]
[1726380854609,1.61942466,60286.0,60281.0,0.001646]
[1726380855176,1.6204233,60286.0,60285.0,0.002646]
[1726380856242,1.54704262,60286.0,60285.0,0.002646]
[1726380858390,1.54604262,60286.0,60285.0,0.001646]
[1726380858866,1.54704262,60286.0,60285.0,0.001646]
[1726380859498,1.54604262,60286.0,60285.0,0.001646]
[1726380859710,1.54704262,60286.0,60285.0,0.001646]
[1726380859866,1.54604262,60286.0,60285.0,0.001646]
[1726380860092,1.55404262,60286.0,60285.0,0.001646]
[1726380860309,1.55304262,60286.0,60285.0,0.001646]
[1726380860747,1.56104262,60286.0,60285.0,0.001646]
[1726380865711,1.161205,60282.0,60281.0,0.02193965]
[1726380866714,1.164205,60282.0,60281.0,0.02193965]
[1726380866937,1.167205,60282.0,60281.0,0.02193965]
[1726380868837,1.164205,60282.0,60281.0,0.02193965]
[1726380868964,1.166205,60282.0,60281.0,0.02193965]
[1726380869377,1.163205,60282.0,60281.0,0.02193965]
[1726380869829,1.165205,60282.0,60281.0,0.02193965]
[1726380870448,1.161205,60282.0,60281.0,0.02193965]
[1726380870671,1.162205,60282.0,60281.0,0.02193965]
[1726380871330,1.163205,60282.0,60281.0,0.02193965]
[1726380872378,1.164205,60282.0,60281.0,0.02193965]
[1726380872593,1.162205,60282.0,60281.0,0.02193965]
[1726380872990,1.163205,60282.0,60281.0,0.02193965]
[1726380873122,1.162205,60282.0,60281.0,0.02193965]
[1726380873486,1.163205,60282.0,60281.0,0.02193965]
[1726380874188,1.161205,60282.0,60281.0,0.02193965]
[1726380874867,1.161265,60279.0,60278.0,0.0828]
[1726380875200,1.161265,60279.0,60278.0,0.09156375]
[1726380875405,1.161265,60279.0,60278.0,0.11356375]
[1726380875606,1.18729557,60279.0,60278.0,0.11356375]
[1726380876253,1.18729557,60279.0,60278.0,0.11456375]
[1726380876474,1.18729557,60279.0,60278.0,0.1058]
[1726380882134,1.18729557,60279.0,60278.0,0.023]
[1726380884336,1.18729557,60279.0,60278.0,0.001]
[1726380887652,1.18729557,60279.0,60278.0,0.001824]
[1726380898344,1.23692164,60279.0,60278.0,0.001824]
[1726380901280,1.18729557,60279.0,60278.0,0.001824]
[1726380906879,1.28329557,60279.0,60278.0,0.001824]
[1726380909961,1.28329557,60279.0,60278.0,0.084624]
[1726380923807,1.35792146,60279.0,60278.0,0.084624]
[1726380924267,1.28329557,60279.0,60278.0,0.084624]
[1726380927095,1.35792146,60279.0,60278.0,0.084624]
[1726380928175,1.33305108,60279.0,60278.0,0.084624]
[1726380930254,1.28329557,60279.0,60278.0,0.084624]
[1726380930496,1.33305108,60279.0,60278.0,0.084624]
[1726380931128,1.28329557,60279.0,60278.0,0.084624]
[1726380932051,1.33304563,60279.0,60278.0,0.084624]
[1726380932625,1.33304563,60279.0,60278.0,0.09357015]
[1726380934076,1.28329557,60279.0,60278.0,0.09357015]
[1726380934916,1.3094288,60279.0,60278.0,0.09357015]
[1726380935450,1.3094288,60279.0,60278.0,0.084624]
[1726380943256,0.8816388,60279.0,60278.0,0.084624]
[1726380943461,0.52371557,60279.0,60278.0,0.107624]
[1726380943882,0.52371557,60279.0,60278.0,0.15161823]
[1726380944316,0.497685,60279.0,60278.0,0.17930864]
[1726380947674,0.52371393,60279.0,60278.0,0.17930864]
[1726380947912,0.19192393,60279.0,60278.0,0.17930864]
[1726380948573,0.52371393,60279.0,60278.0,0.17930864]
[1726380954040,0.52371393,60279.0,60278.0,0.25690864]
[1726380955015,0.497685,60279.0,60278.0,0.25690864]
[1726380957756,0.497685,60279.0,60278.0,0.17930864]
[1726380957977,0.5237136,60279.0,60278.0,0.17930864]
[1726380960918,0.593185,60279.0,60278.0,0.13531441]
[1726380961212,0.593185,60279.0,60278.0,0.107624]
[1726380961781,0.593185,60279.0,60278.0,0.15160643]
[1726380962001,0.924975,60279.0,60278.0,0.15160643]
[1726380962163,1.002675,60279.0,60278.0,0.15160643]
[1726380962628,1.45572875,60279.0,60278.0,0.084624]
[1726380962809,1.36059823,60279.0,60278.0,0.084624]
[1726380966405,1.38662817,60279.0,60278.0,0.084624]
[1726380987562,1.38662817,60279.0,60278.0,0.09357015]
[1726380988679,1.38662817,60279.0,60278.0,0.084624]
[1726380991566,1.38662817,60279.0,60278.0,0.083624]
[1726380992275,1.38862817,60279.0,60278.0,0.083624]
[1726380992703,1.39262817,60279.0,60278.0,0.083624]
[1726380993128,1.38862817,60279.0,60278.0,0.083624]
[1726380993592,1.38662817,60279.0,60278.0,0.083624]
[1726380994013,1.39162817,60279.0,60278.0,0.083624]
[1726380994139,1.39162817,60279.0,60278.0,0.09247015]
[1726380997928,1.39162817,60279.0,60278.0,0.083624]
[1726381003538,1.19229494,60279.0,60278.0,0.083624]
[1726381003812,1.19229494,60279.0,60278.0,0.17875452]
[1726381004474,1.19229494,60279.0,60278.0,0.22274512]
[1726381005126,0.86050494,60279.0,60278.0,0.24574512]
[1726381005331,0.86050494,60279.0,60278.0,0.28100516]
[1726381005763,0.834475,60279.0,60278.0,0.28100516]
[1726381009092,0.86050402,60279.0,60278.0,0.28100516]
[1726381013800,0.52871402,60279.0,60278.0,0.28100516]
[1726381020313,0.52871402,60279.0,60278.0,0.18587464]
[1726381020572,0.86050402,60279.0,60278.0,0.18587464]
[1726381020806,0.86050402,60279.0,60278.0,0.1506146]
[1726381021035,0.86050402,60279.0,60278.0,0.106624]
[1726381049983,1.19229402,60279.0,60278.0,0.106624]
[1726381050619,1.29209402,60279.0,60278.0,0.106624]
[1726381050833,1.29209402,60279.0,60278.0,0.1272832]
[1726381057208,1.29209402,60279.0,60278.0,0.1042832]
[1726381057209,1.39632725,60279.0,60278.0,0.1042832]
[1726381057364,1.39632725,60279.0,60278.0,0.083624]
[1726381076349,1.39607629,60279.0,60278.0,0.083624]
[1726381087365,1.39772229,60279.0,60278.0,0.083624]
[1726381111087,1.39772229,60279.0,60278.0,0.106624]
[1726381111088,0.86189906,60279.0,60278.0,0.106624]
[1726381111316,0.86189906,60279.0,60278.0,0.1294832]
[1726381111749,0.86189906,60279.0,60278.0,0.17346017]
[1726381128486,0.53010906,60279.0,60278.0,0.17346017]
[1726381132702,0.50408004,60279.0,60278.0,0.17346017]
[1726381135791,0.6231092,60279.0,60278.0,0.17346017]
[1726381136048,0.59708004,60279.0,60278.0,0.17346017]
[1726381138933,0.59708004,60279.0,60278.0,0.17216946]
[1726381150132,0.62310927,60279.0,60278.0,0.17216946]
[1726381151619,0.95489927,60279.0,60278.0,0.17216946]
[1726381152698,0.95489927,60279.0,60278.0,0.1294832]
[1726381152912,0.95489927,60279.0,60278.0,0.106624]
[1726381165269,0.95489927,60279.0,60278.0,0.001201]
[1726381166572,0.331801,60277.0,60275.0,0.0009198]
[1726381166741,0.165903,60276.0,60275.0,0.0009198]
[1726381166945,0.165903,60276.0,60275.0,0.06581882]
[1726381167854,0.165903,60276.0,60275.0,0.06681882]
[1726381168506,0.59441,60276.0,60275.0,0.06681882]
[1726381174999,0.59441,60276.0,60275.0,0.06986565]
[1726381175209,0.59441,60276.0,60275.0,0.06681882]
[1726381176060,0.59441,60276.0,60275.0,0.06986565]
[1726381176273,0.59441,60276.0,60275.0,0.06681882]
[1726381176899,0.59441,60276.0,60275.0,0.06986565]
[1726381177131,0.59441,60276.0,60275.0,0.06681882]